bitfinex-derivatives/quotes_SOLF0:USTF0_20250829
["timestamp","ask_amount","ask_price","bid_price","bid_amount"]
[1756449277393,1.70370178,212.93,212.91,7.9364]
[1756449277588,8.80370178,212.95,212.91,7.9364]
[1756449277889,2.25294777,212.94,212.91,7.9364]
[1756449278094,2.25294777,212.94,212.9,0.03386858]
[1756449278095,7.1,212.92,212.9,0.03386858]
[1756449278590,7.1,212.99,212.9,0.03386858]
[1756449278789,7.1,212.92,212.9,0.03386858]
[1756449279489,7.1,212.93,212.9,0.03386858]
[1756449279693,2.25184428,212.92,212.9,0.03386858]
[1756449279898,2.25171189,212.91,212.9,0.03386858]
[1756449280091,7.1,212.93,212.9,0.03386858]
[1756449281695,1.70370178,212.94,212.9,0.03386858]
[1756449281891,7.1,212.92,212.9,0.03386858]
[1756449284496,7.1,212.92,212.9,4.26056858]
[1756449284698,8.80370178,212.96,212.91,3.71]
[1756449284900,8.80370178,212.96,212.9,3.74386858]
[1756449285300,7.1,212.96,212.91,1.70370178]
[1756449285489,7.1,212.96,212.92,119.65]
[1756449285690,1.70370178,212.98,212.92,115.94]
[1756449285894,8.80370178,213.0,212.93,5.41370178]
[1756449286599,8.80370178,213.0,212.94,4.2259]
[1756449286797,1.70370178,212.98,212.95,3.71]
[1756449287293,8.80370178,212.98,212.95,3.71]
[1756449287799,8.80370178,212.98,212.96,4.2256]
[1756449289001,1.70370178,212.98,212.96,4.2256]
[1756449289201,7.1,212.97,212.96,4.2256]
[1756449293400,24.1435,213.07,212.96,7.9356]
[1756449293401,8.80370178,213.0,212.96,7.9356]
[1756449293600,7.1,212.99,212.96,4.2256]
[1756449294097,1.70370178,213.0,212.97,4.2252]
[1756449294497,7.1,212.99,212.95,115.91024793]
[1756449294703,1.70370178,213.0,212.95,115.91024793]
[1756449295101,7.1,212.99,212.95,115.91024793]
[1756449295398,7.1,212.99,212.95,123.84584793]
[1756449296604,1.70370178,213.01,212.95,123.84584793]
[1756449296803,7.1,213.0,212.95,123.84584793]
[1756449297004,8.80370178,213.01,212.95,123.84584793]
[1756449299500,8.80370178,213.01,212.95,120.13584793]
[1756449299697,8.80370178,213.01,212.95,123.84584793]
[1756449301400,8.80370178,213.01,212.95,120.13584793]
[1756449301597,7.1,213.01,212.96,4.2254]
[1756449301807,7.1,213.01,212.97,3.71]
[1756449302007,1.70370178,213.03,212.97,3.71]
[1756449304405,7.1,213.02,212.97,3.71]
[1756449304910,1.70370178,213.03,212.95,115.91024793]
[1756449305109,8.80370178,213.05,212.96,3.71]
[1756449305302,7.1,213.02,212.95,0.03024793]
[1756449305705,7.1,213.02,212.96,3.71]
[1756449306010,7.1,213.0,212.95,0.03024793]
[1756449306206,1.70370178,213.01,212.95,0.03024793]
[1756449307009,7.31,212.98,212.95,0.03024793]
[1756449307209,1.70370178,212.99,212.95,0.03024793]
[1756449308107,7.31,212.98,212.95,0.03024793]
[1756449308407,1.70370178,212.99,212.95,0.03024793]
[1756449308605,7.31,212.98,212.95,0.03024793]
[1756449309010,1.70370178,212.99,212.95,0.03024793]
[1756449309205,7.31,212.98,212.95,0.03024793]
[1756449309611,1.70370178,212.99,212.95,0.03024793]
[1756449309813,7.31,212.97,212.95,0.03024793]
[1756449310313,7.31,212.96,212.95,0.03024793]
[1756449310712,4.2264,212.92,212.86,7.59]
[1756449310915,7.31,212.91,212.86,3.9]
[1756449311110,11.5364,212.92,212.86,3.9]
[1756449314417,7.31,212.9,212.86,7.6]
[1756449315418,0.03127582,212.91,212.86,3.9]
[1756449315617,7.34127582,212.91,212.87,1.70370178]
[1756449315818,7.34127582,212.91,212.88,3.7]
[1756449316714,0.03127582,212.91,212.88,3.7]
[1756449317013,0.03127582,212.91,212.89,5.40370178]
[1756449317214,0.03127582,212.91,212.9,3.7]
[1756449318719,0.03127582,212.91,212.9,7.9267]
[1756449327324,7.34127582,212.91,212.88,117.50370178]
[1756449327520,7.31,212.9,212.88,115.8]
[1756449327823,0.03127582,212.91,212.89,3.7]
[1756449328026,0.03127582,212.91,212.89,4.2269]
[1756449328220,0.03127582,212.91,212.89,7.9269]
[1756449329314,7.31,212.9,212.89,4.2269]
[1756449329516,0.03127582,212.91,212.89,7.9269]
[1756449329717,7.34127582,212.91,212.89,7.9269]
[1756449330523,7.34127582,212.91,212.89,4.2269]
[1756449333327,7.34127582,212.91,212.89,7.9269]
[1756449333529,7.34127582,212.91,212.89,4.2269]
[1756449333831,7.31,212.9,212.89,4.2269]
[1756449338729,0.03127582,212.91,212.89,7.9569]
[1756449339127,7.67127582,212.91,212.89,4.2269]
[1756449343333,0.03127582,212.91,212.89,4.2269]
[1756449343527,7.64,212.9,212.87,4.2273]
[1756449344139,7.64,212.9,212.87,7.9573]
[1756449344339,7.64,212.9,212.87,4.2273]
[1756449344539,7.64,212.9,212.88,3.73]
[1756449344741,7.67127582,212.91,212.88,3.73]
[1756449345042,0.03127582,212.91,212.87,4.2273]
[1756449345440,7.64,212.9,212.87,4.2273]
[1756449345641,7.64,212.9,212.87,7.9573]
[1756449347842,7.64,212.9,212.87,4.2273]
[1756449348037,0.03127582,212.91,212.87,4.2273]
[1756449348634,7.64,212.9,212.87,4.2273]
[1756449350141,0.03127582,212.91,212.87,4.2273]
[1756449350343,7.64,212.9,212.87,4.2273]
[1756449351243,0.03127582,212.91,212.87,4.2273]
[1756449351447,7.64,212.9,212.87,4.2273]
[1756449351943,0.03127582,212.91,212.87,4.2273]
[1756449352646,7.64,212.9,212.87,4.2273]
[1756449353148,7.64,212.9,212.88,4.227]
[1756449353841,0.03127582,212.91,212.88,4.227]
[1756449354243,7.64,212.89,212.88,4.227]
[1756449358651,7.67127582,212.91,212.9,4.2268]
[1756449359741,9.93747876,212.91,212.9,4.2268]
[1756449364255,9.93624851,212.91,212.9,4.2268]
[1756449366357,2.29624851,212.91,212.9,4.2268]
[1756449369457,9.91624851,212.91,212.9,4.2268]
[1756449370161,2.29624851,212.91,212.9,4.2268]
[1756449370658,9.91624851,212.91,212.9,4.2268]
[1756449371561,2.29624851,212.91,212.88,4.2271]
[1756449371767,7.62,212.89,212.88,4.2271]
[1756449372066,7.62,212.88,212.82,117.42370178]
[1756449372266,7.62,212.9,212.83,4.2281]
[1756449372467,7.62,212.88,212.81,1.70370178]
[1756449372667,2.26790436,212.87,212.78,65.7859]
[1756449372872,7.62,212.85,212.82,4.2283]
[1756449373064,7.62,212.83,212.8,117.42370178]
[1756449373262,0.0324331,212.85,212.8,117.42370178]
[1756449373466,9.88454872,212.84,212.83,4.2281]
[1756449373766,8.08,212.84,212.83,4.2281]
[1756449373960,10.34454394,212.84,212.83,4.2281]
[1756449374160,9.88454394,212.84,212.83,4.2281]
[1756449374370,2.72454394,212.84,212.81,4.2285]
[1756449374569,0.0324331,212.85,212.81,4.2285]
[1756449374768,0.0324331,212.85,212.79,1.70370178]
[1756449374769,2.26370776,212.84,212.79,1.70370178]
[1756449374969,0.0324331,212.85,212.79,117.42370178]
[1756449375268,7.62,212.83,212.79,1.70370178]
[1756449375471,7.62,212.84,212.79,1.70370178]
[1756449375667,7.62,212.84,212.82,4.2282]
[1756449376169,0.0324331,212.85,212.82,4.2282]
[1756449376771,7.62,212.84,212.82,4.2282]
[1756449377771,0.0324331,212.85,212.82,4.2282]
[1756449378174,7.62,212.84,212.82,4.2282]
[1756449378676,0.0324331,212.85,212.82,4.2282]
[1756449378873,7.62,212.84,212.82,4.2282]
[1756449381174,0.0324331,212.85,212.84,4.2279]
[1756449381574,0.0324331,212.85,212.84,7.9679]
[1756449387178,0.0324331,212.85,212.84,123.6679]
[1756449388774,3.31e-05,212.85,212.84,123.6679]
[1756449389576,3.31e-05,212.85,212.84,4.2279]
[1756449391679,3.31e-05,212.85,212.84,119.9279]
[1756449392874,3.31e-05,212.85,212.84,123.6679]
[1756449393275,3.31e-05,212.85,212.84,123.6479]
[1756449394182,3.31e-05,212.85,212.84,7.9679]
[1756449394383,3.31e-05,212.85,212.84,119.9079]
[1756449394576,3.31e-05,212.85,212.84,123.6379]
[1756449396479,3.31e-05,212.85,212.84,7.9579]
[1756449396680,3.31e-05,212.85,212.84,123.6379]
[1756449397381,3.31e-05,212.85,212.84,4.2279]
[1756449401075,7.5900331,212.85,212.84,4.2279]
[1756449401275,3.31e-05,212.85,212.83,119.41]
[1756449403179,7.5900331,212.85,212.83,115.68]
[1756449403575,7.5900331,212.85,212.82,0.03371003]
[1756449403780,1.70370178,212.84,212.82,0.03371003]
[1756449403978,9.29370178,212.84,212.82,0.03371003]
[1756449405387,7.59,212.83,212.82,0.03371003]
[1756449406586,9.29370178,212.83,212.82,0.03371003]
[1756449406788,11.55358411,212.83,212.82,0.03371003]
[1756449412292,14.71140306,212.83,212.82,0.03371003]
[1756449415399,4.2283,212.82,212.73,5.43370178]
[1756449415599,9.29370178,212.8,212.73,121.09370178]
[1756449415994,9.29370178,212.8,212.74,3.77]
[1756449416995,0.03263093,212.79,212.74,3.77]
[1756449417300,0.03263093,212.79,212.73,119.45]
[1756449417501,1.70370178,212.78,212.74,3.77]
[1756449418295,1.70370178,212.78,212.72,1.70370178]
[1756449418493,1.70370178,212.78,212.73,3.77]
[1756449421102,1.70370178,212.78,212.72,1.70370178]
[1756449421601,0.03263093,212.79,212.7,153.21897596]
[1756449421794,1.70370178,212.78,212.75,3.77]
[1756449421993,9.29370178,212.78,212.75,3.77]
[1756449422793,9.29370178,212.76,212.74,0.03292313]
[1756449422997,9.84340683,212.75,212.74,0.03292313]
[1756449424201,9.84340683,212.75,212.68,3.77]
[1756449424396,1.70370178,212.69,212.68,3.77]
[1756449425099,7.59,212.82,212.69,3.77]
[1756449425306,7.59,212.8,212.74,1.70370178]
[1756449425601,7.59,212.87,212.75,115.68]
[1756449425802,0.03405028,212.79,212.77,1.70370178]
[1756449426101,105.00861239,212.97,212.8,69.5497]
[1756449426304,7.59,212.93,212.83,7.9981]
[1756449426604,7.15,212.9,212.84,98.58]
[1756449426799,1.70370178,212.89,212.84,98.58]
[1756449427002,7.15,212.92,212.85,115.86]
[1756449427200,1.70370178,212.9,212.85,115.86]
[1756449427505,7.15,212.89,212.75,3.77]
[1756449427703,7.15,212.95,212.76,116.0]
[1756449427898,5.34134969,212.91,212.76,116.0]
[1756449428104,5.34134969,212.91,212.78,3.77]
[1756449428305,5.34134969,212.94,212.78,3.77]
[1756449428703,5.34134969,212.91,212.8,3.77]
[1756449428903,5.34134969,212.88,212.73,9.11134969]
[1756449429101,5.34134969,212.88,212.74,116.3]
[1756449429308,4.2263,212.93,212.76,3.77]
[1756449429499,5.34134969,212.92,212.77,46.4]
[1756449429704,12.49134969,212.92,212.78,3.77]
[1756449430004,7.15,212.97,212.81,3.77]
[1756449430306,65.7011,213.06,212.8,5.34134969]
[1756449430307,7.15,213.06,212.88,3.77]
[1756449430500,7.15,213.01,212.89,20.36]
[1756449430704,5.34134969,213.01,212.9,26.24]
[1756449430904,7.15,213.0,212.9,26.24]
[1756449431104,7.15,213.0,212.9,31.58134969]
[1756449431311,7.15,213.0,212.91,3.77]
[1756449431505,4.2237,213.06,212.92,34.46]
[1756449431911,7.15,213.05,212.91,5.34134969]
[1756449432411,7.15,213.05,212.92,5.7]
[1756449432612,7.15,213.03,212.92,9.9263]
[1756449432812,7.15,213.03,212.9,5.34134969]
[1756449433112,7.15,213.03,212.93,85.68]
[1756449433311,4.2234,213.07,212.93,85.68]
[1756449433807,7.15,213.06,212.95,3.76]
[1756449434206,4.2234,213.07,212.94,116.68]
[1756449434416,7.15,213.06,212.96,5.34134969]
[1756449435108,7.15,213.06,212.96,9.10134969]
[1756449435611,7.15,213.15,213.01,3.76]
[1756449435816,7.15,213.13,213.02,122.02134969]
[1756449436012,7.15,213.18,213.04,5.34134969]
[1756449436214,7.15,213.16,213.03,4.2241]
[1756449436414,5.34134969,213.19,213.04,68.42]
[1756449436915,7.15,213.18,213.03,9.56544969]
[1756449437119,7.15,213.18,213.05,89.52]
[1756449437420,5.34134969,213.19,213.06,104.04]
[1756449437919,65.655,213.21,213.06,104.04]
[1756449438120,5.34134969,213.19,213.06,104.04]
[1756449438310,5.34134969,213.2,213.06,104.04]
[1756449438715,4.2212,213.18,213.06,104.04]
[1756449439114,65.649,213.23,213.06,104.04]
[1756449439317,4.2207,213.21,213.04,9.56514969]
[1756449439520,5.34134969,213.2,213.05,22.1]
[1756449440224,5.34134969,213.16,213.06,28.84]
[1756449440624,65.6516,213.22,213.06,28.84]
[1756449440823,5.34134969,213.2,213.05,5.34134969]
[1756449441025,9.56224969,213.2,213.04,18.42]
[1756449441217,9.56224969,213.2,213.01,5.34134969]
[1756449441420,5.34134969,213.16,213.04,28.74]
[1756449441724,4.2213,213.18,213.01,7.3]
[1756449441925,4.2213,213.18,213.0,9.56604969]
[1756449442124,5.34134969,213.17,213.02,5.34134969]
[1756449442320,5.34134969,213.17,213.03,20.54]
[1756449443026,4.2213,213.18,213.03,39.9]
[1756449443324,5.34134969,213.16,213.03,68.0641]
[1756449443519,5.34134969,213.16,213.03,60.7641]
[1756449443725,65.6516,213.22,213.03,69.18134969]
[1756449444021,5.34134969,213.18,213.04,4.2239]
[1756449444224,5.34134969,213.22,213.04,4.2239]
[1756449444426,5.34134969,213.2,213.05,7.3]
[1756449445129,5.34134969,213.2,213.04,4.2239]
[1756449445327,5.34134969,213.13,213.02,50.4]
[1756449445528,4.2211,213.19,213.03,12.64134969]
[1756449445722,5.34134969,213.2,213.02,50.4]
[1756449445918,5.34134969,213.2,213.05,4.2237]
[1756449446317,5.34134969,213.2,213.03,65.7093]
[1756449446318,9.56174969,213.22,213.03,65.7093]
[1756449446618,4.2204,213.22,213.07,4.2233]
[1756449446820,0.03112835,213.15,213.1,0.02968872]
[1756449447021,0.03112835,213.15,213.1,7.32968872]
[1756449447226,0.03112835,213.15,213.11,7.3]
[1756449447732,27.6599,213.25,213.11,7.3]
[1756449447933,27.6599,213.25,213.07,9.56464969]
[1756449447934,5.34134969,213.23,213.08,21.4]
[1756449448227,5.34134969,213.24,213.1,7.3]
[1756449448432,23.44,213.25,213.11,7.3]
[1756449448634,23.44,213.25,213.12,7.3]
[1756449448828,23.44,213.25,213.1,65.6878]
[1756449449226,23.44,213.25,213.11,5.34134969]
[1756449449424,28.78134969,213.25,213.1,65.6878]
[1756449449825,65.6087,213.36,213.13,65.6781]
[1756449450031,5.34134969,213.31,213.15,65.673]
[1756449450232,5.34134969,213.34,213.2,5.34134969]
[1756449450530,5.34134969,213.39,213.24,7.3]
[1756449450731,5.34134969,213.36,213.21,4.2205]
[1756449450925,5.34134969,213.37,213.21,4.2205]
[1756449451125,5.34134969,213.39,213.26,7.3]
[1756449451331,5.34134969,213.43,213.27,5.34134969]
[1756449451630,5.34134969,213.42,213.27,5.34134969]
[1756449451831,5.34134969,213.39,213.26,31.56]
[1756449452038,5.34134969,213.38,213.27,4.2193]
[1756449452335,0.03389428,213.35,213.27,9.56064969]
[1756449452633,0.03389428,213.35,213.26,31.56]
[1756449452833,0.03389428,213.35,213.27,7.3]
[1756449453029,0.03389428,213.35,213.25,118.16]
[1756449453230,5.34134969,213.33,213.2,65.6572]
[1756449453430,5.34134969,213.33,213.16,65.669]
[1756449453636,5.34134969,213.33,213.23,7.3]
[1756449453942,0.03041371,213.28,213.17,5.34134969]
[1756449454237,0.03041371,213.28,213.18,118.42]
[1756449454442,0.03041371,213.28,213.19,7.3]
[1756449454639,0.03041371,213.28,213.14,65.6748]
[1756449454935,0.03041371,213.28,213.11,65.6839]
[1756449455144,5.34134969,213.27,213.12,118.68]
[1756449455331,0.03445409,213.22,213.13,118.72]
[1756449456142,0.03445409,213.22,213.13,65.6784]
[1756449456336,0.03445409,213.22,213.18,4.2212]
[1756449456535,0.03445409,213.22,213.19,118.78]
[1756449457142,4.6777,213.36,213.21,5.34134969]
[1756449457343,4.2182,213.34,213.24,5.34134969]
[1756449457541,4.2182,213.34,213.18,0.03293726]
[1756449457738,4.2182,213.34,213.24,5.34134969]
[1756449457936,4.2182,213.34,213.05,65.7014]
[1756449457937,65.5862,213.44,213.33,5.34134969]
[1756449458136,65.5909,213.42,213.34,7.28]
[1756449458444,119.2,213.45,213.37,7.28]
[1756449458640,65.5675,213.5,213.37,7.28]
[1756449458840,65.5638,213.51,213.35,5.34134969]
[1756449459036,5.34134969,213.41,213.25,5.34134969]
[1756449459240,65.6032,213.38,213.24,5.34134969]
[1756449459433,4.2175,213.37,213.31,0.03196075]
[1756449459639,27.32134969,213.4,213.31,0.03196075]
[1756449459943,0.0319566,213.36,213.25,5.34134969]
[1756449460141,0.0319566,213.36,213.33,0.0347022]
[1756449460438,0.0319566,213.36,213.25,5.34134969]
[1756449460638,0.0319566,213.36,213.23,6.04]
[1756449460840,0.0319566,213.36,213.32,0.03549529]
[1756449461042,5.34134969,213.36,213.23,6.04]
[1756449461232,4.2173,213.38,213.26,5.34134969]
[1756449461440,4.2166,213.42,213.32,0.03505114]
[1756449461740,5.34134969,213.47,213.33,7.28]
[1756449462136,5.34134969,213.42,213.33,7.28]
[1756449462339,65.5664,213.5,213.33,7.28]
[1756449462535,5.34134969,213.43,213.33,7.28]
[1756449462736,5.33,213.42,213.28,8.84]
[1756449462939,5.33,213.42,213.29,11.08]
[1756449463141,5.33,213.42,213.36,0.03244376]
[1756449464144,5.33,213.44,213.36,0.03244376]
[1756449464346,2.0,213.46,213.36,7.31244376]
[1756449464543,121.56,213.55,213.36,7.31244376]
[1756449464743,5.33,213.46,213.36,0.03244376]
[1756449464948,8.37691823,213.47,213.35,7.28]
[1756449465144,0.56691823,213.47,213.35,8.28]
[1756449465338,2.2946,213.52,213.4,7.28]
[1756449465539,1.12691823,213.46,213.4,7.28]
[1756449465746,1.12691823,213.46,213.34,29.06]
[1756449466146,1.12691823,213.46,213.41,0.03524498]
[1756449466447,8.37691823,213.49,213.31,67.4585]
[1756449466647,8.37691823,213.46,213.32,0.03]
[1756449466944,8.37691823,213.42,213.24,0.03]
[1756449467149,7.76,213.41,213.25,44.28]
[1756449467547,2.0,213.47,213.29,74.00601823]
[1756449467748,16.13691823,213.5,213.33,0.03]
[1756449468052,16.13691823,213.54,213.36,4.2174]
[1756449468241,16.13691823,213.54,213.37,0.03]
[1756449468439,101.4394,213.59,213.37,0.03]
[1756449468440,8.37691823,213.57,213.4,0.03]
[1756449468641,7.76,213.56,213.4,4.2168]
[1756449468847,8.37691823,213.49,213.3,65.6259]
[1756449469049,7.76,213.48,213.34,4.2179]
[1756449469349,8.33691823,213.52,213.34,0.04]
[1756449469548,8.33691823,213.52,213.35,65.611]
[1756449469746,8.37691823,213.48,213.28,380.6511]
[1756449469947,8.37691823,213.48,213.33,65.6163]
[1756449470249,45.16,213.51,213.35,65.6114]
[1756449470451,45.16,213.51,213.29,8.37691823]
[1756449470452,8.37691823,213.48,213.29,124.74]
[1756449470748,8.37691823,213.52,213.33,65.6173]
[1756449470949,8.37691823,213.58,213.36,65.6082]
[1756449471148,82.46,213.59,213.38,65.6021]
[1756449471350,0.03373901,213.45,213.37,4.2174]
[1756449471545,7.76,213.46,213.37,4.2174]
[1756449471946,7.79183993,213.43,213.39,4.217]
[1756449472144,0.03183993,213.43,213.39,4.217]
[1756449472344,90.83691823,213.59,213.38,8.37691823]
[1756449472849,90.83691823,213.59,213.35,8.37691823]
[1756449472850,8.37691823,213.55,213.35,8.37691823]
[1756449473146,127.34,213.57,213.35,8.37691823]
[1756449473551,7.76,213.56,213.35,8.37691823]
[1756449473743,7.76,213.54,213.35,8.37691823]
[1756449473941,2.0,213.55,213.35,8.37691823]
[1756449474143,0.03151919,213.47,213.33,128.06]
[1756449474343,0.03151919,213.47,213.31,8.37691823]
[1756449474552,8.37691823,213.51,213.31,202.40051823]
[1756449474747,8.37691823,213.55,213.35,8.37691823]
[1756449474950,65.5077,213.69,213.48,8.37691823]
[1756449475250,8.37691823,213.66,213.48,54.25691823]
[1756449475445,8.37691823,213.57,213.4,92.54]
[1756449475641,8.37691823,213.61,213.43,8.37691823]
[1756449475843,65.4922,213.74,213.53,8.37691823]
[1756449476040,8.37691823,213.73,213.53,8.37691823]
[1756449476243,8.37691823,213.73,213.48,8.37691823]
[1756449476244,8.37691823,213.71,213.49,14.18]
[1756449476449,8.37691823,213.61,213.09,10.50820717]
[1756449476649,69.7544,213.58,213.36,8.37691823]
[1756449476853,5.13176892,213.74,213.45,8.37691823]
[1756449477158,7.76,213.66,213.46,13.71691823]
[1756449477356,8.37691823,213.78,213.56,8.37691823]
[1756449477556,2.0,213.82,213.6,8.37691823]
[1756449477756,2.0,213.82,213.47,314.86]
[1756449477757,0.03019075,213.69,213.61,5.4]
[1756449477956,65.4649,213.83,213.69,0.03288093]
[1756449478152,8.37691823,213.89,213.69,0.03288093]
[1756449478452,65.4529,213.87,213.66,8.37691823]
[1756449478654,65.4409,213.91,213.67,8.37691823]
[1756449478858,65.4287,213.95,213.76,8.37691823]
[1756449479061,65.4378,213.92,213.76,8.37691823]
[1756449479263,69.6634,213.86,213.77,0.03327831]
[1756449479568,65.4428,213.9,213.59,8.37691823]
[1756449479867,8.37691823,213.78,213.6,5.56]
[1756449480063,65.4776,213.79,213.55,7.16]
[1756449480265,4.2092,213.79,213.72,0.03153678]
[1756449480465,65.4801,213.78,213.57,10.45691823]
[1756449480661,0.03387784,213.69,213.56,8.37691823]
[1756449480856,0.03387784,213.69,213.55,8.37691823]
[1756449481061,8.37691823,213.77,213.47,314.86]
[1756449481362,8.37691823,213.79,213.56,8.37691823]
[1756449481663,73.86641823,213.75,213.55,8.37691823]
[1756449481867,0.03530715,213.7,213.55,8.37691823]
[1756449482068,0.03530715,213.7,213.53,26.12]
[1756449482268,65.5214,213.65,213.44,8.37691823]
[1756449482470,8.37691823,213.64,213.43,8.37691823]
[1756449482763,8.37691823,213.61,213.39,8.37691823]
[1756449482963,65.4984,213.72,213.53,8.37691823]
[1756449483165,65.4984,213.72,213.46,8.37691823]
[1756449483166,65.471,213.81,213.59,8.37691823]
[1756449483369,65.4776,213.79,213.53,314.68]
[1756449483558,0.03383292,213.72,213.61,8.37691823]
[1756449483760,0.03383292,213.72,213.57,150.89691823]
[1756449483959,0.03383292,213.72,213.53,323.05691823]
[1756449484162,65.514,213.67,213.4,8.37691823]
[1756449484463,65.514,213.67,213.36,212.6848]
[1756449484464,7.76,213.58,213.36,212.6848]
[1756449484665,7.76,213.58,213.35,314.68]
[1756449484960,8.37691823,213.66,213.45,8.37691823]
[1756449485168,8.37691823,213.66,213.46,143.54]
[1756449485571,8.37691823,213.66,213.53,0.03577903]
[1756449485769,20.34821823,213.69,213.53,0.03577903]
[1756449485974,7.76,213.68,213.47,8.37691823]
[1756449486364,8.37691823,213.72,213.47,73.95091823]
[1756449486573,8.37691823,213.67,213.55,0.02986304]
[1756449486873,8.37691823,213.63,213.55,0.02986304]
[1756449487075,73.87601823,213.72,213.42,8.37691823]
[1756449487076,8.37691823,213.65,213.46,8.37691823]
[1756449487262,40.62,213.64,213.33,8.37691823]
[1756449487463,81.61141823,213.64,213.57,0.00529349]
[1756449487661,81.61141823,213.64,213.48,8.37691823]
[1756449487662,0.03479338,213.58,213.48,8.37691823]
[1756449488066,7.71,213.74,213.51,8.37691823]
[1756449488270,73.85501823,213.79,213.52,65.5587]
[1756449488567,65.4988,213.72,213.45,73.95661823]
[1756449488767,0.03469421,213.68,213.5,69.7796]
[1756449488970,8.37691823,213.68,213.46,8.37691823]
[1756449489366,0.03428892,213.61,213.44,69.7989]
[1756449489571,0.03428892,213.61,213.46,8.37691823]
[1756449489770,65.5018,213.71,213.5,8.37691823]
[1756449490068,0.03508047,213.56,213.5,8.37691823]
[1756449490268,0.03508047,213.56,213.51,144.14]
[1756449490574,65.4746,213.8,213.55,8.37691823]
[1756449490873,65.4799,213.78,213.59,8.37691823]
[1756449491070,65.4593,213.85,213.59,8.37691823]
[1756449491071,4.2075,213.88,213.68,8.37691823]
[1756449491267,65.4354,213.93,213.63,65.525]
[1756449491268,65.4524,213.87,213.63,65.525]
[1756449491570,73.86651823,213.75,213.51,73.93831823]
[1756449491873,7.71,213.73,213.55,8.37691823]
[1756449492068,65.4486,213.89,213.69,8.37691823]
[1756449492268,65.4467,213.89,213.69,164.01691823]
[1756449492467,7.71,213.87,213.73,8.37691823]
[1756449492670,0.03504276,213.81,213.77,8.37691823]
[1756449493064,65.427,213.96,213.77,8.37691823]
[1756449493267,65.427,213.96,213.71,65.4988]
[1756449493268,65.427,213.96,213.79,13.39388349]
[1756449493471,225.6807,213.99,213.79,13.39388349]
[1756449493667,65.4401,213.91,213.64,65.5217]
[1756449493872,7.71,213.88,213.7,13.39388349]
[1756449494070,71.6408,213.93,213.71,156.14]
[1756449494270,65.4404,213.91,213.71,156.14]
[1756449494472,65.4527,213.87,213.7,13.39388349]
[1756449494668,4.2081,213.85,213.79,0.03342156]
[1756449494869,65.4687,213.82,213.55,505.5288]
[1756449495075,0.03325752,213.81,213.69,13.39388349]
[1756449495268,0.03325752,213.81,213.74,78.88488349]
[1756449495577,65.4193,213.98,213.76,65.4845]
[1756449495774,65.4245,213.96,213.7,65.5023]
[1756449496074,65.4311,213.94,213.69,157.1]
[1756449496265,78.83208349,213.92,213.69,157.1]
[1756449496666,13.39388349,213.89,213.66,157.56]
[1756449496871,13.39388349,213.85,213.78,0.03069784]
[1756449497076,69.6607,213.87,213.78,0.03069784]
[1756449497077,13.39388349,213.8,213.78,0.03069784]
[1756449497276,13.39388349,213.8,213.61,158.38]
[1756449497477,13.39388349,213.8,213.62,65.5271]
[1756449497672,2.0,213.82,213.61,223.9107]
[1756449497874,2.0,213.82,213.61,158.38]
[1756449498070,13.39388349,213.85,213.62,158.72]
[1756449498276,13.39388349,213.84,213.62,158.72]
[1756449498473,13.39388349,213.84,213.62,224.2479]
[1756449498773,65.4554,213.86,213.61,13.39388349]
[1756449498973,65.4554,213.86,213.64,69.7328]
[1756449498974,69.6632,213.86,213.64,69.7328]
[1756449499275,69.6632,213.86,213.61,13.39388349]
[1756449499276,78.85518349,213.84,213.61,13.39388349]
[1756449499476,0.0328827,213.77,213.61,65.5312]
[1756449499670,0.0328827,213.77,213.6,159.24]
[1756449499877,78.85518349,213.84,213.61,13.39388349]
[1756449500071,65.4688,213.82,213.61,13.39388349]
[1756449500277,65.4688,213.82,213.58,65.5396]